lending/lending_fUSD_20250501
["ID","MTS","AMOUNT","RATE_DAILY","PERIOD"]
[359574806,1746137443057,-470.0,0.00035616,11]
[359574807,1746137443066,-525.06502007,0.00035616,11]
[359574808,1746137443076,-450.0,0.00035616,11]
[359574809,1746137443086,-151.83996,0.00035616,7]
[359574810,1746137443095,-450.0,0.00035616,11]
[359574811,1746137443105,-307.246909,0.00035616,7]
[359574812,1746137443114,-521.83174376,0.00035616,11]
[359574813,1746137443124,-307.246909,0.00035616,7]
[359574814,1746137443134,-450.0,0.00035616,11]
[359574815,1746137443145,-934.72,0.00035616,11]
[359574816,1746137443155,-561.20918129,0.00035616,11]
[359574817,1746137443166,-507.17289959,0.00035616,11]
[359574818,1746137443177,-450.0,0.00035616,11]
[359574819,1746137443188,-470.0,0.00035616,11]
[359574820,1746137443199,-524.86176293,0.00035616,11]
[359574821,1746137443208,-470.0,0.00035616,11]
[359574822,1746137443218,-530.01065887,0.00035616,11]
[359574824,1746137443227,-450.0,0.00035616,11]
[359574826,1746137443237,-541.10265667,0.00035616,11]
[359574827,1746137443248,-522.9194497,0.00035616,11]
[359574828,1746137443257,-470.0,0.00035616,11]
[359574829,1746137443267,-470.0,0.00035616,11]
[359574831,1746137443277,-450.0,0.00035616,11]
[359574832,1746137443286,-470.0,0.00035616,11]
[359574833,1746137443296,-151.0,0.00035616,7]
[359574834,1746137443305,-151.0,0.00035616,7]
[359574835,1746137443319,-450.0,0.00035616,11]
[359574836,1746137443328,-470.0,0.00035616,11]
[359574837,1746137443338,-470.0,0.00035616,11]
[359574838,1746137443347,-470.0,0.00035616,11]
[359574839,1746137443357,-540.83,0.00035616,11]
[359574840,1746137443367,-151.0,0.00035616,7]
[359574841,1746137443376,-450.0,0.00035616,11]
[359574842,1746137443386,-450.0,0.00035616,11]
[359574843,1746137443396,-470.0,0.00035616,11]
[359574844,1746137443406,-511.14124875,0.00035616,11]
[359574845,1746137443416,-540.6070837,0.00035616,11]
[359574846,1746137443425,-170.90300038,0.00035616,11]
[359574847,1746137443435,-621.12,0.00035616,11]
[359574848,1746137443444,-470.0,0.00035616,11]
[359574849,1746137443454,-541.96374485,0.00035616,11]
[359574850,1746137443464,-450.0,0.00035616,11]
[359574851,1746137443474,-450.0,0.00035616,11]
[359574852,1746137443483,-470.0,0.00035616,11]
[359574853,1746137443493,-450.0,0.00035616,11]
[359574854,1746137443503,-1060.9,0.00035616,11]
[359574855,1746137443512,-496.63,0.00035616,11]
[359574856,1746137443523,-511.56,0.00035616,11]
[359574857,1746137443532,-281.406446,0.00035616,7]
[359574858,1746137443542,-450.0,0.00035616,11]
[359574859,1746137443551,-450.0,0.00035616,11]
[359574860,1746137443561,-450.0,0.00035616,11]
[359574861,1746137443571,-281.406446,0.00035616,7]
[359574862,1746137443580,-239.77931832,0.00035616,11]
[359574863,1746137443590,-419.89136213,0.00035616,11]
[359574864,1746137443599,-809.04,0.00035616,11]
[359574865,1746137443609,-450.0,0.00035616,11]
[359574866,1746137443618,-470.0,0.00035616,11]
[359574867,1746137443628,-450.0,0.00035616,11]
[359574868,1746137443638,-470.0,0.00035616,11]
[359574869,1746137443648,-470.0,0.00035616,11]
[359574870,1746137443657,-1233.93,0.00035616,11]
[359574871,1746137443667,-450.0,0.00035616,11]
[359574872,1746137443676,-450.0,0.00035616,11]
[359574873,1746137443686,-450.0,0.00035616,11]
[359574874,1746137443695,-450.0,0.00035616,11]
[359574875,1746137443705,-450.0,0.00035616,11]
[359574876,1746137443714,-502.92,0.00035616,11]
[359574877,1746137443724,-450.0,0.00035616,11]
[359574878,1746137443734,-485.97,0.00035616,11]
[359574879,1746137443744,-708.39,0.00035616,11]
[359574880,1746137443754,-470.0,0.00035616,11]
[359574881,1746137443763,-450.0,0.00035616,11]
[359574882,1746137443773,-450.0,0.00035616,11]
[359574883,1746137443783,-450.0,0.00035616,11]
[359574884,1746137443792,-450.0,0.00035616,11]
[359574885,1746137443802,-470.0,0.00035616,11]
[359574886,1746137443811,-450.0,0.00035616,11]
[359574887,1746137443820,-888.78,0.00035616,11]
[359574888,1746137443831,-756.54,0.00035616,11]
[359574889,1746137443840,-1491.46,0.00035616,11]
[359574890,1746137443850,-450.0,0.00035616,11]
[359574891,1746137443860,-2171.12,0.00035616,11]
[359574892,1746137443869,-450.0,0.00035616,11]
[359574893,1746137443879,-406.42275344,0.00035616,11]
[359574894,1746137443888,-450.0,0.00035616,11]
[359574895,1746137443897,-508.74659321,0.00035616,11]
[359574896,1746137443906,-450.0,0.00035616,2]
[359574897,1746137443916,-450.0,0.00035616,11]
[359574898,1746137443926,-470.0,0.00035616,11]
[359574899,1746137443935,-1306.96,0.00035616,11]
[359574900,1746137443945,-603.85,0.00035616,11]
[359574901,1746137443955,-674.77,0.00035616,11]
[359574902,1746137443964,-470.0,0.00035616,11]
[359574903,1746137443974,-860.69,0.00035616,11]
[359574904,1746137443984,-450.0,0.00035616,11]
[359574905,1746137443994,-450.0,0.00035616,11]
[359574906,1746137444004,-450.0,0.00035616,11]
[359574907,1746137444013,-500.0,0.00035616,11]
[359574908,1746137444023,-1075.77,0.00035616,11]
[359574909,1746137444033,-450.0,0.00035616,11]
[359574910,1746137444042,-470.0,0.00035616,11]
[359574911,1746137444052,-450.0,0.00035616,2]
[359574912,1746137444062,-450.0,0.00035616,11]
[359574913,1746137444072,-657.82,0.00035616,11]
[359574914,1746137444082,-1134.06,0.00035616,11]
[359574915,1746137444091,-450.0,0.00035616,11]
[359574916,1746137444101,-532.8,0.00035616,11]
[359574917,1746137444110,-450.0,0.00035616,11]
[359574918,1746137444120,-578.93769598,0.00035616,11]
[359574919,1746137444130,-982.42,0.00035616,11]
[359574920,1746137444139,-408.54688901,0.00035616,11]
[359574921,1746137444148,-470.0,0.00035616,11]
[359574922,1746137444158,-2054.77,0.00035616,11]
[359574923,1746137444168,-450.0,0.00035616,11]
[359574924,1746137444177,-556.93128772,0.00035616,11]
[359574925,1746137444187,-470.0,0.00035616,11]
[359574926,1746137444196,-508.21049277,0.00035616,11]
[359574927,1746137444205,-2000.0,0.00035616,11]
[359574928,1746137444215,-450.0,0.00035616,11]
[359574929,1746137444224,-450.0,0.00035616,2]
[359574930,1746137444234,-535.38615794,0.00035616,11]
[359574931,1746137444246,-470.0,0.00035616,11]
[359574932,1746137444256,-469.82,0.00035616,11]
[359574933,1746137444266,-450.0,0.00035616,11]
[359574934,1746137444275,-450.0,0.00035616,11]
[359574935,1746137444284,-803.53,0.00035616,11]
[359574936,1746137444294,-470.0,0.00035616,11]
[359574937,1746137444304,-450.0,0.00035616,11]
[359574938,1746137444315,-470.0,0.00035616,11]
[359574939,1746137444325,-450.0,0.00035616,11]
[359574940,1746137444334,-151.0,0.00035616,7]
[359574941,1746137444344,-470.0,0.00035616,11]
[359574942,1746137444355,-580.73,0.00035616,11]
[359574943,1746137444364,-470.0,0.00035616,11]
[359574944,1746137444375,-450.0,0.00035616,11]
[359574945,1746137444385,-470.0,0.00035616,11]
[359574946,1746137444395,-1587.58,0.00035616,11]
[359574947,1746137444404,-470.0,0.00035616,11]
[359574948,1746137444414,-450.0,0.00035616,11]
[359574949,1746137444424,-160.41285126,0.00035616,11]
[359574950,1746137444434,-525.983902,0.00035616,7]
[359574951,1746137444444,-450.0,0.00035616,11]
[359574952,1746137444454,-470.0,0.00035616,11]
[359574953,1746137444463,-450.0,0.00035616,11]
[359574954,1746137444473,-483.06,0.00035616,11]
[359574955,1746137444483,-517.74829216,0.00035616,11]
[359574956,1746137444492,-1083.69,0.00035616,11]
[359574957,1746137444502,-450.0,0.00035616,11]
[359574958,1746137444511,-1809.19,0.00035616,11]
[359574959,1746137444520,-525.983902,0.00035616,7]
[359574960,1746137444529,-470.0,0.00035616,11]
[359574961,1746137444539,-450.0,0.00035616,11]
[359574962,1746137444548,-472.73,0.00035616,11]
[359574963,1746137444558,-450.0,0.00035616,11]
[359574964,1746137444568,-450.0,0.00035616,11]
[359574965,1746137444578,-500.0,0.00035616,11]
[359574966,1746137444587,-470.0,0.00035616,11]
[359574967,1746137444597,-450.0,0.00035616,11]
[359574968,1746137444607,-547.8991961,0.00035616,11]
[359574969,1746137444617,-470.0,0.00035616,11]
[359574970,1746137444627,-151.0,0.00035616,7]
[359574971,1746137444637,-151.0,0.00035616,7]
[359574972,1746137444647,-470.0,0.00035616,11]
[359574973,1746137444656,-470.0,0.00035616,11]
[359574974,1746137444666,-512.71650542,0.00035616,11]
[359574975,1746137444676,-500.0,0.00035616,11]
[359574976,1746137444686,-450.0,0.00035616,11]
[359574977,1746137444696,-733.99,0.00035616,11]
[359574978,1746137444706,-151.0,0.00035616,7]
[359574979,1746137444715,-450.0,0.00035616,11]
[359574980,1746137444726,-450.0,0.00035616,11]
[359574981,1746137444736,-470.0,0.00035616,11]
[359574982,1746137444746,-470.0,0.00035616,7]
[359574983,1746137444756,-470.0,0.00035616,11]
[359574984,1746137444766,-151.0,0.00035616,7]
[359574985,1746137444776,-198.41847,0.00035616,7]
[359574986,1746137444786,-276.09261851,0.00035616,11]
[359574987,1746137444796,-470.0,0.00035616,11]
[359574988,1746137444805,-470.0,0.00035616,11]
[359574989,1746137444815,-151.0,0.00035616,7]
[359574990,1746137444824,-500.0,0.00035616,11]
[359574991,1746137444834,-500.0,0.00035616,11]
[359574992,1746137444844,-450.0,0.00035616,11]
[359574993,1746137444853,-500.0,0.00035616,11]
[359574994,1746137444863,-546.26285448,0.00035616,11]
[359574995,1746137444872,-500.0,0.00035616,11]
[359574996,1746137444882,-500.0,0.00035616,11]
[359574997,1746137444892,-500.0,0.00035616,11]
[359574998,1746137444901,-500.0,0.00035616,11]
[359574999,1746137444911,-506.22,0.00035616,11]
[359575000,1746137444921,-1019.15,0.00035616,11]
[359575001,1746137444931,-500.0,0.00035616,11]
[359575002,1746137444941,-470.0,0.00035616,11]
[359575003,1746137444951,-500.0,0.00035616,11]
[359575004,1746137444961,-575.65405594,0.00035616,11]
[359575005,1746137444971,-500.0,0.00035616,11]
[359575006,1746137444980,-536.48277515,0.00035616,11]
[359575007,1746137444990,-450.0,0.00035616,11]
[359575008,1746137445000,-527.77,0.00035616,11]
[359575009,1746137445010,-494.31,0.00035616,11]
[359575010,1746137445019,-554.68,0.00035616,11]
[359575011,1746137445029,-470.0,0.00035616,11]
[359575012,1746137445039,-450.0,0.00035616,11]
[359575013,1746137445049,-450.0,0.00035616,11]
[359575014,1746137445058,-577.34273769,0.00035616,11]
[359575015,1746137445131,-540.59207806,0.00035616,11]
[359575016,1746137445141,-450.0,0.00035616,11]
[359575017,1746137445150,-539.72512155,0.00035616,11]
[359575018,1746137445160,-151.0,0.00035616,7]
[359575019,1746137445169,-500.0,0.00035616,11]
[359575020,1746137445178,-151.0,0.00035616,7]
[359575021,1746137445187,-565.32,0.00035616,11]
[359575022,1746137445196,-470.0,0.00035616,11]
[359575023,1746137445206,-450.0,0.00035616,11]
[359575024,1746137445215,-450.0,0.00035616,11]
[359575025,1746137445225,-1257.44,0.00035616,11]
[359575026,1746137445234,-500.0,0.00035616,11]
[359575027,1746137445245,-470.0,0.00035616,11]
[359575028,1746137445256,-470.0,0.00035616,11]
[359575029,1746137445265,-254.11,0.00035616,11]
[359575030,1746137445274,-616.47,0.00035616,11]
[359575031,1746137445284,-363.34795656,0.00035616,11]
[359575032,1746137445293,-450.0,0.00035616,11]
[359575033,1746137445303,-585.69990437,0.00035616,11]
[359575034,1746137445314,-1228.66,0.00035616,11]
[359575035,1746137445324,-450.0,0.00035616,11]
[359575036,1746137445334,-450.0,0.00035616,11]
[359575037,1746137445343,-270.72167125,0.00035616,11]
[359575038,1746137445352,-151.0,0.00035616,7]
[359575039,1746137445362,-450.0,0.00035616,11]
[359575040,1746137445371,-151.0,0.00035616,7]
[359575041,1746137445381,-450.0,0.00035616,11]
[359575042,1746137445390,-275.25771566,0.00035616,11]
[359575043,1746137445400,-450.0,0.00035616,11]
[359575044,1746137445409,-450.0,0.00035616,11]
[359575045,1746137445419,-450.0,0.00035616,11]
[359575046,1746137445429,-500.0,0.00035616,11]
[359575047,1746137445439,-450.0,0.00035616,11]
[359575048,1746137445449,-450.0,0.00035616,11]
[359575049,1746137445459,-151.0,0.00035616,7]
[359575050,1746137445468,-151.0,0.00035616,7]
[359575051,1746137445478,-495.72,0.00035616,11]
[359575052,1746137445488,-450.0,0.00035616,11]
[359575054,1746137445497,-450.0,0.00035616,11]
[359575055,1746137445506,-450.0,0.00035616,11]
[359575056,1746137445515,-450.0,0.00035616,11]
[359575057,1746137445525,-542.3392265,0.00035616,11]
[359575058,1746137445535,-450.0,0.00035616,11]
[359575059,1746137445544,-450.0,0.00035616,11]
[359575060,1746137445554,-450.0,0.00035616,11]
[359575061,1746137445563,-686.46,0.00035616,11]
[359575062,1746137445573,-645.1,0.00035616,11]
[359575063,1746137445583,-450.0,0.00035616,11]
[359575064,1746137445592,-500.0,0.00035616,11]
[359575065,1746137445601,-470.0,0.00035616,11]
[359575066,1746137445611,-450.0,0.00035616,11]
[359575067,1746137445620,-450.0,0.00035616,11]
[359575068,1746137445630,-470.0,0.00035616,11]
[359575069,1746137445640,-450.0,0.00035616,11]
[359575071,1746137445650,-527.49764963,0.00035616,11]
[359575072,1746137445660,-450.0,0.00035616,11]
[359575073,1746137445670,-450.0,0.00035616,11]
[359575074,1746137445679,-469.3,0.00035616,11]
[359575075,1746137445689,-151.0,0.00035616,7]
[359575076,1746137445698,-151.0,0.00035616,7]
[359575077,1746137445707,-450.0,0.00035616,11]
[359575078,1746137445717,-450.0,0.00035616,11]
[359575079,1746137445726,-401.86906816,0.00035616,11]
[359575080,1746137445736,-450.0,0.00035616,11]
[359575081,1746137445746,-450.0,0.00035616,11]
[359575082,1746137445756,-541.63772701,0.00035616,11]
[359575083,1746137445766,-539.52263152,0.00035616,11]
[359575084,1746137445776,-571.53067943,0.00035616,11]
[359575085,1746137445786,-1016.8,0.00035616,11]
[359575086,1746137445796,-450.0,0.00035616,11]
[359575087,1746137445809,-1098.77,0.00035616,11]
[359575088,1746137445819,-450.0,0.00035616,11]
[359575089,1746137445828,-277.47483898,0.00035616,11]
[359575090,1746137445838,-470.0,0.00035616,11]
[359575091,1746137445847,-470.0,0.00035616,11]
[359575092,1746137445856,-301.07813,0.00035616,7]
[359575093,1746137445866,-1175.04,0.00035616,11]
[359575094,1746137445876,-450.0,0.00035616,11]
[359575095,1746137445885,-450.0,0.00035616,11]
[359575096,1746137445894,-839.92,0.00035616,11]
[359575097,1746137445904,-500.0,0.00035616,11]
[359575098,1746137445914,-450.0,0.00035616,11]
[359575099,1746137445923,-633.53,0.00035616,11]
[359575100,1746137445932,-450.0,0.00035616,11]
[359575101,1746137445942,-364.89214831,0.00035616,11]
[359575102,1746137445951,-450.0,0.00035616,11]
[359575103,1746137445961,-470.0,0.00035616,11]
[359575104,1746137445970,-450.0,0.00035616,11]
[359575105,1746137445980,-450.0,0.00035616,11]
[359575106,1746137445989,-470.0,0.00035616,11]
[359575107,1746137445999,-506.81321354,0.00035616,11]
[359575108,1746137446008,-450.0,0.00035616,11]
[359575109,1746137446018,-806.89,0.00035616,11]
[359575110,1746137446027,-151.0,0.00035616,7]
[359575111,1746137446037,-151.0,0.00035616,7]
[359575112,1746137446046,-470.0,0.00035616,11]
[359575113,1746137446055,-887.91,0.00035616,11]
[359575114,1746137446065,-151.0,0.00035616,7]
[359575115,1746137446075,-500.0,0.00035616,11]
[359575116,1746137446084,-470.0,0.00035616,11]
[359575117,1746137446093,-456.08,0.00035616,11]
[359575118,1746137446103,-781.21,0.00035616,11]
[359575119,1746137446113,-570.44827194,0.00035616,11]
[359575120,1746137446123,-509.39,0.00035616,11]
[359575121,1746137446132,-450.0,0.00035616,11]
[359575122,1746137446142,-450.0,0.00035616,11]
[359575123,1746137446151,-511.0196778,0.00035616,11]
[359575124,1746137446161,-902.5,0.00035616,11]
[359575126,1746137446171,-450.0,0.00035616,11]
[359575128,1746137446180,-710.22,0.00035616,11]
[359575130,1746137446190,-450.0,0.00035616,7]
[359575132,1746137446200,-470.0,0.00035616,11]
[359575134,1746137446209,-2075.49,0.00035616,11]
[359575136,1746137446219,-450.0,0.00035616,11]
[359575138,1746137446229,-450.0,0.00035616,11]
[359575141,1746137446239,-470.0,0.00035616,11]
[359575144,1746137446251,-470.0,0.00035616,11]
[359575145,1746137446261,-470.0,0.00035616,11]
[359575146,1746137446271,-470.0,0.00035616,11]
[359575147,1746137446280,-525.60586167,0.00035616,11]
[359575148,1746137446290,-450.0,0.00035616,11]
[359575149,1746137446299,-450.0,0.00035616,11]
[359575150,1746137446308,-151.0,0.00035616,7]
[359575151,1746137446321,-502.86085126,0.00035616,11]
[359575152,1746137446331,-450.0,0.00035616,11]
[359575153,1746137446340,-1150.22,0.00035616,11]
[359575154,1746137446350,-756.88,0.00035616,11]
[359575155,1746137446360,-458.85,0.00035616,11]
[359575156,1746137446369,-450.0,0.00035616,7]
[359575157,1746137446379,-450.0,0.00035616,11]
[359575158,1746137446391,-450.0,0.00035616,11]
[359575159,1746137446400,-450.0,0.00035616,11]
[359575160,1746137446410,-875.6,0.00035616,11]
[359575161,1746137446419,-470.0,0.00035616,11]
[359575162,1746137446429,-519.64,0.00035616,11]
[359575163,1746137446439,-530.69799756,0.00035616,11]
[359575164,1746137446449,-151.0,0.00035616,7]
[359575165,1746137446459,-151.0,0.00035616,7]
[359575166,1746137446469,-450.0,0.00035616,11]
[359575167,1746137446479,-516.70590191,0.00035616,11]
[359575168,1746137446488,-888.87,0.00035616,11]
[359575169,1746137446498,-470.0,0.00035616,11]
[359575170,1746137446507,-3225.23,0.00035616,11]
[359575171,1746137446516,-450.0,0.00035616,11]
[359575172,1746137446525,-450.0,0.00035616,11]
[359575173,1746137446535,-203.782142,0.00035616,7]
[359575174,1746137446543,-825.62,0.00035616,11]
[359575175,1746137446556,-450.0,0.00035616,11]
[359575176,1746137446566,-540.73786731,0.00035616,11]
[359575177,1746137446576,-450.0,0.00035616,11]
[359575178,1746137446585,-450.0,0.00035616,11]
[359575179,1746137446594,-1162.27,0.00035616,11]
[359575180,1746137446603,-450.0,0.00035616,11]
[359575181,1746137446612,-507.60100621,0.00035616,11]
[359575182,1746137446622,-203.782142,0.00035616,7]
[359575183,1746137446631,-450.0,0.00035616,11]
[359575184,1746137446641,-809.51,0.00035616,11]
[359575185,1746137446650,-549.22,0.00035616,11]
[359575186,1746137446659,-450.0,0.00035616,11]
[359575187,1746137446669,-501.05,0.00035616,11]
[359575188,1746137446678,-602.74,0.00035616,11]
[359575189,1746137446688,-1000.0,0.00035616,60]
[359575190,1746137446697,-950.96,0.00035616,11]
[359575191,1746137446707,-450.0,0.00035616,11]
[359575192,1746137446717,-450.0,0.00035616,11]
[359575193,1746137446726,-613.48,0.00035616,11]
[359575194,1746137446736,-470.0,0.00035616,11]
[359575195,1746137446746,-500.0,0.00035616,11]
[359575196,1746137446756,-658.3,0.00035616,11]
[359575197,1746137446766,-1085.3,0.00035616,11]
[359575198,1746137446779,-450.0,0.00035616,11]
[359575199,1746137446789,-312.6,0.00035616,2]
[359575200,1746137446799,-596.08,0.00035616,11]
[359575201,1746137446808,-738.57,0.00035616,11]
[359575202,1746137446817,-187.57071096,0.00035616,11]
[359575203,1746137446827,-1012.65,0.00035616,11]
[359575204,1746137446836,-692.14,0.00035616,11]
[359575205,1746137446846,-983.38,0.00035616,11]
[359575206,1746137446856,-450.0,0.00035616,11]
[359575207,1746137446866,-470.0,0.00035616,11]
[359575208,1746137446876,-517.15182725,0.00035616,11]
[359575209,1746137446886,-450.0,0.00035616,11]
[359575210,1746137446895,-496.15403073,0.00035616,11]
[359575211,1746137446905,-675.8,0.00035616,11]
[359575212,1746137446914,-305.17212908,0.00035616,11]
[359575213,1746137446924,-450.0,0.00035616,11]
[359575214,1746137446933,-313.35008691,0.00035616,11]
[359575215,1746137446943,-450.0,0.00035616,11]
[359575216,1746137446952,-500.0,0.00035616,11]
[359575217,1746137446962,-450.0,0.00035616,11]
[359575218,1746137446971,-1087.08,0.00035616,11]
[359575219,1746137446981,-450.0,0.00035616,11]
[359575220,1746137446991,-450.0,0.00035616,11]
[359575221,1746137447001,-347.94739802,0.00035616,11]
[359575222,1746137447011,-570.96274898,0.00035616,11]
[359575223,1746137447021,-470.0,0.00035616,11]
[359575224,1746137447030,-450.0,0.00035616,11]
[359575225,1746137447039,-470.0,0.00035616,11]
[359575226,1746137447049,-450.0,0.00035616,11]
[359575227,1746137447058,-629.93,0.00035616,11]
[359575228,1746137447067,-450.0,0.00035616,11]
[359575229,1746137447077,-450.0,0.00035616,11]
[359575230,1746137447087,-450.0,0.00035616,11]
[359575231,1746137447096,-533.53,0.00035616,11]
[359575232,1746137447106,-450.0,0.00035616,11]
[359575233,1746137447116,-564.19,0.00035616,11]
[359575234,1746137447125,-450.0,0.00035616,11]
[359575235,1746137447135,-450.0,0.00035616,11]
[359575236,1746137447144,-470.0,0.00035616,11]
[359575237,1746137447153,-450.0,0.00035616,11]
[359575238,1746137447163,-450.0,0.00035616,11]
[359575239,1746137447172,-899.52,0.00035616,11]
[359575240,1746137447182,-450.0,0.00035616,11]
[359575241,1746137447191,-470.0,0.00035616,11]
[359575242,1746137447201,-450.0,0.00035616,11]
[359575243,1746137447211,-2864.99,0.00035616,11]
[359575244,1746137447220,-548.56842744,0.00035616,11]
[359575245,1746137447229,-1328.02,0.00035616,11]
[359575246,1746137447239,-970.78,0.00035616,11]
[359575247,1746137447249,-976.36,0.00035616,11]
[359575248,1746137447259,-790.6,0.00035616,11]
[359575249,1746137447270,-537.94352884,0.00035616,11]
[359575250,1746137447279,-450.0,0.00035616,11]
[359575251,1746137447290,-450.0,0.00035616,11]
[359575252,1746137447299,-450.0,0.00035616,11]
[359575253,1746137447309,-470.0,0.00035616,11]
[359575254,1746137447323,-450.0,0.00035616,11]
[359575255,1746137447332,-470.0,0.00035616,11]
[359575256,1746137447341,-450.0,0.00035616,11]
[359575257,1746137447351,-1019.41,0.00035616,11]
[359575258,1746137447361,-151.0,0.00035616,7]
[359575259,1746137447370,-151.0,0.00035616,7]
[359575260,1746137447379,-450.0,0.00035616,11]
[359575261,1746137447389,-450.0,0.00035616,11]
[359575262,1746137447399,-598.44,0.00035616,11]
[359575263,1746137447409,-450.0,0.00035616,11]
[359575264,1746137447418,-467.26,0.00035616,11]
[359575265,1746137447429,-450.0,0.00035616,11]
[359575266,1746137447439,-450.0,0.00035616,11]
[359575267,1746137447448,-630.97,0.00035616,11]
[359575268,1746137447458,-450.0,0.00035616,11]
[359575269,1746137447468,-473.55,0.00035616,11]
[359575270,1746137447478,-450.0,0.00035616,11]
[359575271,1746137447487,-450.0,0.00035616,11]
[359575272,1746137447497,-450.0,0.00035616,11]
[359575273,1746137447506,-450.0,0.00035616,11]
[359575274,1746137447516,-848.81,0.00035616,11]
[359575275,1746137447526,-450.0,0.00035616,11]
[359575276,1746137447535,-596.731986,0.00035616,7]
[359575277,1746137447544,-450.0,0.00035616,11]
[359575278,1746137447553,-450.0,0.00035616,10]
[359575279,1746137447563,-472.77,0.00035616,11]
[359575280,1746137447572,-450.0,0.00035616,11]
[359575281,1746137447581,-450.0,0.00035616,11]
[359575282,1746137447590,-450.0,0.00035616,11]
[359575283,1746137447599,-450.0,0.00035616,11]
[359575284,1746137447609,-500.0,0.00035616,11]
[359575285,1746137447619,-500.0,0.00035616,11]
[359575286,1746137447628,-500.0,0.00035616,11]
[359575287,1746137447637,-434.47627175,0.00035616,11]
[359575288,1746137447647,-596.731986,0.00035616,7]
[359575289,1746137447656,-1202.2,0.00035616,11]
[359575290,1746137447665,-450.0,0.00035616,11]
[359575291,1746137447675,-450.0,0.00035616,11]
[359575292,1746137447684,-1017.89,0.00035616,11]
[359575293,1746137447694,-450.0,0.00035616,11]
[359575294,1746137447703,-470.0,0.00035616,11]
[359575295,1746137447713,-450.0,0.00035616,11]
[359575296,1746137447723,-450.0,0.00035616,11]
[359575297,1746137447732,-470.0,0.00035616,11]
[359575298,1746137447742,-521.66034455,0.00035616,11]
[359575299,1746137447752,-1411.61,0.00035616,11]
[359575300,1746137447762,-450.0,0.00035616,11]
[359575301,1746137447771,-644.23,0.00035616,11]
[359575302,1746137447781,-450.0,0.00035616,11]
[359575303,1746137447791,-470.0,0.00035616,11]
[359575304,1746137447800,-990.87,0.00035616,11]
[359575305,1746137447810,-450.0,0.00035616,11]
[359575306,1746137447819,-500.0,0.00035616,11]
[359575307,1746137447829,-500.0,0.00035616,11]
[359575308,1746137447838,-500.0,0.00035616,11]
[359575309,1746137447848,-450.0,0.00035616,11]
[359575310,1746137447857,-450.0,0.00035616,11]
[359575311,1746137447866,-500.0,0.00035616,11]
[359575312,1746137447877,-500.0,0.00035616,11]
[359575313,1746137447886,-500.0,0.00035616,11]
[359575314,1746137447896,-500.0,0.00035616,11]
[359575315,1746137447905,-500.0,0.00035616,11]
[359575316,1746137447915,-500.0,0.00035616,11]
[359575317,1746137447924,-561.41,0.00035616,11]
[359575318,1746137447934,-500.0,0.00035616,11]
[359575319,1746137447943,-500.0,0.00035616,11]
[359575320,1746137447954,-500.0,0.00035616,11]
[359575321,1746137447963,-500.0,0.00035616,11]